bitfinex-derivatives/quotes_SOLF0:USTF0_20260227
["timestamp","ask_amount","ask_price","bid_price","bid_amount"]
[1772169438409,3.55550022,87.669,87.631,1.35668494]
[1772169440108,10.2658,87.667,87.631,1.35668494]
[1772169442809,11.45587186,87.688,87.641,1.42643338]
[1772169443013,3.55550022,87.699,87.651,1.42643338]
[1772169443808,3.33057523,87.7,87.651,1.42643338]
[1772169443809,10.2639,87.683,87.651,1.42643338]
[1772169444512,3.55550022,87.686,87.651,1.42643338]
[1772169445302,3.55550022,87.698,87.651,1.42643338]
[1772169445506,3.55550022,87.698,87.66,3.33057523]
[1772169446110,3.55550022,87.698,87.651,1.42643338]
[1772169446308,3.55550022,87.698,87.66,3.33057523]
[1772169447407,3.55550022,87.698,87.661,1.47517732]
[1772169449614,3.55550022,87.718,87.67,4.79735648]
[1772169450914,3.55550022,87.716,87.67,4.79735648]
[1772169451912,3.55550022,87.714,87.67,4.79735648]
[1772169452513,3.55550022,87.71,87.67,4.79735648]
[1772169452715,3.55550022,87.71,87.67,1.46678125]
[1772169453519,3.55550022,87.71,87.66,3.33057523]
[1772169453819,3.55550022,87.71,87.661,1.44523782]
[1772169454015,3.55550022,87.708,87.661,1.44523782]
[1772169454617,3.55550022,87.708,87.617,62.56667518]
[1772169454618,3.55550022,87.708,87.671,1.44926851]
[1772169458822,3.55550022,87.708,87.672,1.44877807]
[1772169459224,3.77916345,87.718,87.681,1.44877807]
[1772169459415,3.77916345,87.729,87.69,4.77848764]
[1772169459614,3.77916345,87.729,87.691,1.44791241]
[1772169461026,3.77916345,87.729,87.7,3.33057523]
[1772169464229,3.66996394,87.739,87.7,15.07090503]
[1772169465130,3.66996394,87.739,87.708,10.261]
[1772169465427,3.66996394,87.759,87.71,4.8095524]
[1772169465619,3.66996394,87.759,87.711,10.2605]
[1772169465819,3.66996394,87.759,87.658,20.5336]
[1772169465820,3.66996394,87.759,87.72,3.33057523]
[1772169466029,3.66996394,87.759,87.721,1.47897717]
[1772169471426,3.66996394,87.759,87.661,21.24155389]
[1772169471427,3.66996394,87.759,87.702,1.42883908]
[1772169471632,3.66996394,87.749,87.7,3.33057523]
[1772169473031,3.66996394,87.747,87.7,3.33057523]
[1772169475239,3.66996394,87.744,87.7,3.32501198]
[1772169476034,3.66996394,87.742,87.7,3.32501198]
[1772169476232,3.66996394,87.742,87.695,1.63946286]
[1772169477546,3.66996394,87.742,87.701,1.63016858]
[1772169479045,3.66996394,87.759,87.721,1.63787085]
[1772169480549,3.66996394,87.77,87.721,1.63787085]
[1772169480756,3.66996394,87.77,87.72,3.32501198]
[1772169480757,3.66996394,87.77,87.731,1.679742]
[1772169481947,3.66996394,87.77,87.73,3.32501198]
[1772169482151,3.66996394,87.77,87.723,10.2591]
[1772169482557,3.66996394,87.77,87.723,11.95494804]
[1772169483057,3.66996394,87.77,87.724,1.69584804]
[1772169483550,3.66996394,87.769,87.715,1.69584804]
[1772169483750,3.66996394,87.769,87.71,3.32501198]
[1772169483956,3.66996394,87.759,87.703,1.69584804]
[1772169484851,13.92506394,87.759,87.704,10.2614]
[1772169485048,3.66996394,87.758,87.704,10.2614]
[1772169485248,3.66996394,87.758,87.704,11.87083803]
[1772169485959,3.66996394,87.756,87.704,11.87083803]
[1772169487160,3.66996394,87.754,87.704,11.87083803]
[1772169487652,18.62854706,87.781,87.693,10.2627]
[1772169487653,3.32501198,87.75,87.693,10.2627]
[1772169487852,3.66996394,87.749,87.693,10.2627]
[1772169488259,3.66996394,87.749,87.694,1.58467931]
[1772169488955,3.66996394,87.746,87.694,1.58467931]
[1772169491355,3.32501198,87.74,87.693,10.2627]
[1772169491662,3.73399568,87.739,87.693,10.2627]
[1772169491861,3.73399568,87.739,87.696,1.57654233]
[1772169499073,3.73399568,87.739,87.699,1.5907978]
[1772169506370,3.73399568,87.739,87.702,1.57841703]
[1772169506975,3.73399568,87.749,87.706,1.56089875]
[1772169507175,3.73399568,87.749,87.711,1.56089875]
[1772169510879,3.73399568,87.749,87.72,4.8874335]
[1772169511073,3.73399568,87.764,87.721,1.56242152]
[1772169511377,3.73399568,87.764,87.722,1.56242152]
[1772169511980,3.73399568,87.764,87.73,4.8874335]
[1772169512180,432.41826365,87.765,87.74,3.32501198]
[1772169512581,3.73399568,87.774,87.74,3.32501198]
[1772169513380,3.73399568,87.774,87.731,1.56242152]
[1772169513882,3.73399568,87.774,87.731,11.82062152]
[1772169514182,3.73399568,87.774,87.732,1.56781774]
[1772169514382,3.73399568,87.774,87.74,3.32501198]
[1772169520581,3.73399568,87.774,87.721,11.886919]
[1772169520983,3.73399568,87.774,87.722,1.627519]
[1772169521987,3.68114212,87.772,87.725,10.2589]
[1772169522384,3.68114212,87.772,87.73,3.32501198]
[1772169523286,3.68114212,87.785,87.741,1.60852899]
[1772169523484,436.22173407,87.789,87.741,1.60852899]
[1772169523485,22.30968918,87.781,87.741,1.60852899]
[1772169524785,436.22173407,87.789,87.751,1.60749624]
[1772169524981,436.22173407,87.789,87.699,20.524]
[1772169524982,3.68114212,87.792,87.76,4.93250822]
[1772169525182,3.68114212,87.792,87.76,3.32501198]
[1772169525385,3.68114212,87.792,87.75,3.32501198]
[1772169525692,3.68114212,87.792,87.75,4.93250822]
[1772169525892,3.68114212,87.792,87.751,10.2559]
[1772169526093,3.68114212,87.792,87.76,3.32501198]
[1772169527889,3.68114212,87.792,87.76,4.93263124]
[1772169528595,3.68114212,87.792,87.76,3.32501198]
[1772169533303,3.68114212,87.805,87.761,1.62097112]
[1772169535398,3.68114212,87.805,87.763,1.62153114]
[1772169537003,3.68114212,87.805,87.767,1.60995021]
[1772169537308,3.68114212,87.805,87.77,3.31953467]
[1772169537806,3.68114212,87.805,87.771,1.60995021]
[1772169540209,3.68114212,87.829,87.781,1.62109286]
[1772169541207,3.68114212,87.827,87.781,1.62109286]
[1772169541408,3.68114212,87.827,87.773,10.2533]
[1772169541409,3.68114212,87.819,87.773,10.2533]
[1772169541603,3.68114212,87.809,87.724,21.24155389]
[1772169541907,3.68114212,87.809,87.751,1.61574669]
[1772169542108,429.68202636,87.829,87.738,1.61574669]
[1772169542109,3.68114212,87.789,87.738,1.61574669]
[1772169544004,3.68114212,87.786,87.738,1.61574669]
[1772169545611,10.2507,87.796,87.738,1.61574669]
[1772169545612,3.68114212,87.779,87.738,1.61574669]
[1772169546109,3.68114212,87.79,87.75,3.31953467]
[1772169546311,3.68114212,87.79,87.751,1.45128895]
[1772169546510,3.68114212,87.805,87.761,1.45122523]
[1772169548810,3.68114212,87.805,87.751,10.2559]
[1772169548811,3.68114212,87.799,87.751,10.2559]
[1772169551013,3.31953467,87.79,87.751,10.2559]
[1772169551206,3.5467356,87.789,87.749,1.45012951]
[1772169551424,3.5467356,87.779,87.737,1.44705474]
[1772169551809,3.5467356,87.779,87.738,10.2574]
[1772169552312,3.5467356,87.779,87.737,1.44705474]
[1772169554214,3.31953467,87.77,87.737,1.44705474]
[1772169554409,3.5467356,87.779,87.737,1.44705474]
[1772169556118,3.5467356,87.759,87.719,10.2597]
[1772169556617,3.5467356,87.759,87.709,10.2608]
[1772169558020,3.5467356,87.759,87.713,10.2603]
[1772169558217,3.5467356,87.759,87.714,1.38280966]
[1772169561219,3.31953467,87.77,87.719,1.34113203]
[1772169561416,3.31953467,87.77,87.721,1.34113203]
[1772169562825,3.31953467,87.75,87.704,1.36322821]
[1772169563020,3.5467356,87.759,87.704,1.36322821]
[1772169563221,3.5467356,87.759,87.711,1.36322821]
[1772169563422,3.31953467,87.77,87.725,1.36322821]
[1772169563615,11.47901378,87.802,87.725,1.36322821]
[1772169563616,3.5467356,87.769,87.725,1.36322821]
[1772169564220,3.31953467,87.78,87.731,1.36322821]
[1772169564416,3.5467356,87.782,87.731,1.36322821]
[1772169564624,3.5467356,87.782,87.733,1.35101238]
[1772169565028,3.31953467,87.78,87.733,1.35101238]
[1772169565229,3.5467356,87.779,87.733,1.35101238]
[1772169565527,3.5467356,87.779,87.723,11.61011238]
[1772169565723,3.5467356,87.769,87.723,1.35101238]
[1772169566123,3.5467356,87.769,87.723,11.61011238]
[1772169566727,3.5467356,87.769,87.724,1.36252986]
[1772169567120,3.5467356,87.769,87.726,10.2588]
[1772169567320,3.5467356,87.769,87.731,1.36252986]
[1772169567521,3.5467356,87.789,87.731,1.36252986]
[1772169569031,3.5467356,87.789,87.738,1.36221409]
[1772169569433,3.5467356,87.789,87.74,4.68174876]
[1772169569632,3.5467356,87.789,87.741,1.36221409]
[1772169571827,3.5467356,87.789,87.744,1.36284031]
[1772169572030,3.5467356,87.809,87.751,1.36284031]
[1772169573731,3.31953467,87.81,87.751,1.36284031]
[1772169573732,3.5467356,87.807,87.751,1.36284031]
[1772169573934,3.5467356,87.799,87.74,4.68326209]
[1772169574435,3.5467356,87.799,87.747,10.2563]
[1772169574942,3.5467356,87.799,87.748,1.35317936]
[1772169575141,3.5467356,87.799,87.754,1.35317936]
[1772169577042,3.5467356,87.799,87.756,1.36413353]
[1772169577540,3.5467356,87.799,87.76,4.6836682]
[1772169577731,3.5467356,87.817,87.771,1.36413353]
[1772169577934,3.31953467,87.81,87.76,3.31953467]
[1772169578140,3.5467356,87.807,87.76,1.36413353]
[1772169578334,3.5467356,87.807,87.75,3.31953467]
[1772169578630,3.5467356,87.799,87.75,3.31953467]
[1772169579940,3.5467356,87.799,87.748,1.36413353]
[1772169580144,3.31953467,87.8,87.74,13.57663467]
[1772169580145,3.51520039,87.789,87.74,13.57663467]
[1772169580346,3.51520039,87.789,87.74,14.69241067]
[1772169581238,3.51520039,87.789,87.729,10.2585]
[1772169581543,3.51520039,87.789,87.73,3.31953467]
[1772169581746,3.51520039,87.789,87.731,1.10954522]
[1772169582738,3.51520039,87.779,87.731,1.10954522]
[1772169583144,3.51520039,87.769,87.707,1.103156]
[1772169583339,3.51520039,87.769,87.71,3.31953467]
[1772169583546,3.51520039,87.769,87.71,4.42269067]
[1772169583740,3.51520039,87.769,87.711,1.103156]
[1772169584245,3.51520039,87.759,87.711,1.103156]
[1772169584647,3.51520039,87.759,87.7,3.31953467]
[1772169584648,3.51520039,87.749,87.698,1.06806279]
[1772169586646,3.51520039,87.719,87.672,1.05173909]
[1772169586849,3.51520039,87.719,87.66,3.31953467]
[1772169587342,3.51520039,87.719,87.66,4.37127376]
[1772169588050,3.51520039,87.719,87.663,10.2662]
[1772169588844,3.51520039,87.719,87.671,1.04932029]
[1772169589037,3.51520039,87.719,87.68,3.31953467]
[1772169589443,3.51520039,87.719,87.671,1.04932029]
[1772169589645,3.51520039,87.709,87.66,3.31953467]
[1772169590950,3.51520039,87.709,87.66,13.58603467]
[1772169594147,3.51520039,87.709,87.66,14.64368128]
[1772169594945,3.51520039,87.709,87.665,10.2659]
[1772169598752,3.51520039,87.709,87.671,11.33255857]
[1772169598952,3.51520039,87.709,87.672,1.06725857]
[1772169599952,3.51520039,87.709,87.673,10.265]
[1772169601154,3.51520039,87.709,87.663,10.2661]
[1772169601354,3.51520039,87.709,87.659,1.07218939]
[1772169601745,3.51520039,87.709,87.66,3.32824237]
[1772169602758,3.51520039,87.709,87.661,10.2664]
[1772169602958,3.51520039,87.709,87.662,0.98191565]
[1772169604258,3.51520039,87.709,87.664,10.266]
[1772169604758,3.51520039,87.709,87.67,3.32824237]
[1772169604956,11.46706155,87.774,87.681,0.99274689]
[1772169604957,3.51520039,87.728,87.681,0.99274689]
[1772169605962,3.51520039,87.728,87.69,3.32824237]
[1772169606160,3.51520039,87.749,87.7,3.32824237]
[1772169606357,3.51520039,87.749,87.71,3.32824237]
[1772169607460,3.51520039,87.749,87.711,1.02033914]
[1772169608657,3.51520039,87.762,87.72,3.32824237]
[1772169611552,3.51520039,87.762,87.72,4.36942664]
[1772169611759,3.51520039,87.762,87.721,1.04118427]
[1772169615256,3.66067739,87.782,87.73,3.32824237]
[1772169615454,3.66067739,87.782,87.74,3.32824237]
[1772169616867,3.66067739,87.78,87.74,3.32824237]
[1772169617064,3.66067739,87.78,87.731,1.03922685]
[1772169617253,3.66067739,87.78,87.74,3.32824237]
[1772169620757,3.66067739,87.78,87.66,28.23416877]
[1772169620758,3.32824237,87.77,87.72,3.32824237]
[1772169620963,3.66067739,87.759,87.7,3.32824237]
[1772169621263,3.66067739,87.758,87.701,10.2617]
[1772169621460,3.66067739,87.758,87.701,0.97644287]
[1772169621965,3.66067739,87.758,87.711,11.23694287]
[1772169622165,3.66067739,87.758,87.712,0.97644287]
[1772169622971,3.66067739,87.758,87.713,10.2603]
[1772169623966,3.66067739,87.758,87.71,3.32824237]
[1772169624165,3.66067739,87.758,87.701,1.04131837]
[1772169624374,3.66067739,87.758,87.71,3.32824237]
[1772169624861,3.66067739,87.758,87.712,10.2604]
[1772169625976,3.66067739,87.758,87.712,11.25940368]
[1772169628979,3.66067739,87.774,87.721,0.99427776]
[1772169629879,3.66067739,87.774,87.723,10.2592]
[1772169630272,3.66067739,87.774,87.721,0.99427776]
[1772169630475,3.32824237,87.8,87.741,3.82644649]
[1772169631878,10.2506,87.797,87.748,10.2562]
[1772169632479,3.66067739,87.796,87.748,10.2562]
[1772169633487,3.66067739,87.789,87.739,10.2573]
[1772169633687,3.66067739,87.779,87.727,3.82644649]
[1772169634281,3.66067739,87.779,87.736,10.2577]
[1772169636986,3.66067739,87.779,87.736,14.08414649]
[1772169637178,3.66067739,87.779,87.737,3.82644649]
[1772169637383,3.66067739,87.779,87.74,3.32824237]
[1772169638690,3.66067739,87.779,87.741,3.82644649]
[1772169638988,11.43451361,87.828,87.74,3.32824237]
[1772169638989,3.66067739,87.796,87.751,3.82644649]
[1772169641188,10.2525,87.781,87.74,3.32824237]
[1772169641487,3.57835001,87.78,87.737,3.69599388]
[1772169643089,6.90659238,87.78,87.737,3.69599388]
[1772169644290,3.57835001,87.779,87.737,3.69599388]
[1772169644795,3.57835001,87.779,87.731,10.2583]
[1772169647594,3.57835001,87.769,87.725,3.69599388]
[1772169648495,3.57835001,87.759,87.715,3.69599388]
[1772169650000,3.57835001,87.759,87.716,13.95599388]
[1772169652597,3.57835001,87.749,87.692,3.69599388]
[1772169653502,3.57835001,87.749,87.695,10.2625]
[1772169653690,3.57835001,87.749,87.696,3.69599388]
[1772169653895,3.57835001,87.739,87.696,3.69599388]
[1772169654399,3.57835001,87.709,87.661,3.69599388]
[1772169657903,3.57835001,87.709,87.669,13.96139388]
[1772169658504,3.57835001,87.728,87.674,3.69599388]
[1772169658701,3.57835001,87.728,87.681,3.69599388]
[1772169662006,3.32651073,87.72,87.681,3.69599388]
[1772169662508,3.57835001,87.728,87.681,3.69599388]
[1772169664896,3.57835001,87.719,87.681,3.69599388]
[1772169665098,11.45286164,87.768,87.667,3.69599388]
[1772169665099,3.57835001,87.709,87.667,3.69599388]
[1772169667906,3.57835001,87.709,87.666,10.2658]
[1772169668106,3.57835001,87.699,87.666,10.2658]
[1772169670712,3.57835001,87.699,87.657,10.2668]
[1772169670904,3.57835001,87.699,87.651,3.69599388]
[1772169671106,3.32651073,87.69,87.651,3.69599388]
[1772169671810,3.57835001,87.699,87.651,3.69599388]
[1772169673013,3.32651073,87.71,87.651,3.69599388]
[1772169673315,3.59933734,87.709,87.651,3.69599388]
[1772169674114,3.59933734,87.679,87.63,3.32651073]
[1772169674710,3.59933734,87.677,87.624,3.84340298]
[1772169675920,3.59933734,87.673,87.624,3.84340298]
[1772169677217,3.59933734,87.673,87.63,3.32651073]
[1772169678026,3.59933734,87.671,87.63,3.32651073]
[1772169681032,3.59933734,87.671,87.64,3.32651073]
[1772169681738,3.59933734,87.671,87.63,3.32651073]
[1772169684026,3.59933734,87.671,87.624,3.84340298]
[1772169684027,3.59933734,87.668,87.624,3.84340298]
[1772169684232,3.59933734,87.668,87.63,3.32651073]
[1772169684633,3.59933734,87.662,87.62,3.32651073]
[1772169685932,11.39244048,87.712,87.61,3.32651073]
[1772169685933,3.59933734,87.658,87.61,3.32651073]
[1772169687936,3.59933734,87.648,87.61,3.32651073]
[1772169693335,21.94134592,87.706,87.585,3.84340298]
[1772169693336,3.59933734,87.645,87.585,3.84340298]
[1772169693535,3.59933734,87.645,87.59,3.32651073]
[1772169694036,3.59933734,87.625,87.6,3.32651073]
[1772169694234,3.59933734,87.637,87.6,3.32651073]
[1772169694434,3.59933734,87.637,87.61,3.32651073]
[1772169694639,3.59933734,87.637,87.6,3.32651073]
[1772169695337,3.59933734,87.634,87.592,3.84340298]
[1772169695542,3.59933734,87.634,87.59,3.32651073]
[1772169696244,3.59933734,87.634,87.6,3.32651073]
[1772169697035,13.86953734,87.63,87.6,3.32651073]
[1772169697239,3.59933734,87.63,87.6,3.32651073]
[1772169697944,3.59933734,87.645,87.62,3.32651073]
[1772169698247,3.59933734,87.687,87.63,3.32651073]
[1772169698441,3.59933734,87.658,87.63,1.073e-05]
[1772169698646,3.59933734,87.658,87.62,3.32651073]
[1772169699942,10.2675,87.652,87.62,3.32651073]
[1772169700746,13.79615904,87.652,87.62,3.32651073]
[1772169702344,3.52865904,87.651,87.62,3.32651073]
[1772169706646,13.79645904,87.65,87.62,3.32651073]
[1772169706840,3.52865904,87.649,87.62,3.32651073]
[1772169708748,3.52865904,87.647,87.62,3.32651073]
[1772169712452,10.54890544,87.693,87.6,3.83776706]
[1772169712453,3.52865904,87.643,87.6,7.16427779]
[1772169713956,10.2691,87.639,87.61,3.32651073]
[1772169714648,3.52865904,87.643,87.6,3.83776706]
[1772169714852,3.52865904,87.624,87.59,3.32651073]
[1772169716057,10.2712,87.621,87.59,3.32651073]
[1772169716663,10.2701,87.63,87.61,3.32651073]
[1772169716957,3.52865904,87.666,87.61,3.32651073]
[1772169717147,3.52865904,87.655,87.62,3.32651073]
[1772169717857,10.2676,87.652,87.62,3.32651073]
[1772169718853,10.2676,87.652,87.63,3.32651073]
[1772169719454,10.2676,87.652,87.63,1.073e-05]
[1772169720357,3.52865904,87.656,87.62,3.32651073]
[1772169720554,3.52865904,87.654,87.542,28.23416877]
[1772169720855,3.52865904,87.652,87.61,1.073e-05]
[1772169721059,21.22625752,87.692,87.61,1.073e-05]
[1772169721060,10.2705,87.627,87.61,1.073e-05]
[1772169721255,10.2705,87.627,87.576,10.2763]
[1772169721558,10.2705,87.627,87.61,3.855e-05]
[1772169722152,3.52865904,87.667,87.63,3.855e-05]
[1772169722461,12.13830169,87.666,87.64,3.855e-05]
[1772169722653,8.60964265,87.665,87.64,3.855e-05]
[1772169722854,10.2676,87.651,87.64,3.855e-05]
[1772169723457,3.86154934,87.66,87.62,5.218e-05]
[1772169723653,3.86154934,87.66,87.63,3.855e-05]
[1772169724660,10.2676,87.651,87.63,3.855e-05]
[1772169726861,10.2676,87.651,87.62,3.33259073]
[1772169730063,10.2676,87.651,87.62,9.073e-05]
[1772169730260,3.90587377,87.643,87.6,3.33253855]
[1772169731960,3.91223106,87.639,87.6,3.33253855]
[1772169732563,3.91223106,87.639,87.61,3.33253855]
[1772169733266,3.91407518,87.637,87.61,3.33253855]
[1772169733767,3.91407518,87.635,87.6,3.33253855]
[1772169734867,10.27,87.632,87.6,3.33253855]
[1772169736464,10.2701,87.63,87.6,3.33253855]
[1772169737971,14.19275251,87.63,87.6,3.33253855]
[1772169738670,10.2707,87.625,87.6,3.33253855]
[1772169739664,10.2707,87.625,87.61,3.855e-05]
[1772169739865,10.2707,87.625,87.575,10.2764]
[1772169740071,10.2707,87.625,87.6,3.33253855]
[1772169745068,10.2707,87.625,87.524,20.5651]
[1772169745069,3.74238275,87.617,87.58,3.33253855]
[1772169745272,3.74238275,87.617,87.57,6.55566086]
[1772169746374,3.74238275,87.615,87.57,6.55566086]
[1772169747270,3.74238275,87.613,87.57,6.55566086]
[1772169748574,3.74238275,87.61,87.57,6.55566086]
[1772169748976,3.74238275,87.61,87.571,3.26329234]
[1772169749477,3.74238275,87.61,87.58,3.33253855]
[1772169750382,3.74238275,87.635,87.581,3.26329234]
[1772169750579,10.2708,87.624,87.6,3.33253855]
[1772169751273,10.272,87.615,87.581,3.27884319]
[1772169751881,14.01328275,87.623,87.59,3.33253855]
[1772169752474,10.2719,87.615,87.581,3.27884319]
[1772169752779,10.2719,87.615,87.59,3.33253855]
[1772169753981,10.2729,87.607,87.57,3.33253855]
[1772169754182,3.74238275,87.606,87.57,3.33253855]
[1772169755281,3.74238275,87.606,87.558,3.26260414]
[1772169755480,3.74238275,87.606,87.561,3.26260414]
[1772169756177,14.01588275,87.602,87.561,3.26260414]
[1772169756884,10.2735,87.602,87.571,3.25885575]
[1772169759179,3.74238275,87.614,87.57,9.43e-05]
[1772169759382,3.74238275,87.614,87.56,3.33253855]
[1772169759981,3.74238275,87.614,87.56,3.855e-05]
[1772169760476,10.2763,87.578,87.56,3.855e-05]
[1772169760676,10.2763,87.578,87.55,3.855e-05]
[1772169763382,10.2772,87.57,87.54,3.33253855]
[1772169763680,3.87058187,87.578,87.54,3.855e-05]
[1772169764080,10.2782,87.562,87.54,3.855e-05]
[1772169764281,10.2782,87.562,87.53,3.855e-05]
[1772169765187,10.2792,87.553,87.52,3.33253855]
[1772169766290,10.2804,87.543,87.51,3.33253855]
[1772169766582,3.87857069,87.566,87.53,3.33253855]
[1772169766789,3.87857069,87.566,87.467,1.98803182]
[1772169766790,10.2791,87.553,87.52,3.33253855]
[1772169768687,10.2791,87.553,87.495,10.2859]
[1772169768688,10.2802,87.544,87.51,3.33253855]
[1772169769189,3.8676569,87.543,87.441,438.99931267]
[1772169769383,3.8676569,87.543,87.49,3.33253855]
[1772169769584,10.2819,87.53,87.475,10.2882]
[1772169769779,10.2819,87.53,87.5,3.33253855]
[1772169770184,10.2807,87.54,87.5,3.33253855]
[1772169770383,3.8676569,87.555,87.51,3.33253855]
[1772169770988,10.2796,87.55,87.51,3.33253855]
[1772169771191,3.91622246,87.549,87.51,3.33253855]
[1772169772885,10.2801,87.545,87.5,3.33253855]
[1772169773491,10.2801,87.545,87.51,3.33253855]
[1772169775688,10.2801,87.545,87.52,3.33253855]
[1772169775993,10.2801,87.545,87.53,3.855e-05]
[1772169776189,10.2801,87.545,87.52,3.855e-05]
[1772169777193,10.2801,87.545,87.483,10.2873]
[1772169777391,3.97026351,87.539,87.48,3.33253855]
[1772169777587,10.2835,87.517,87.48,3.33253855]
[1772169777784,3.97026351,87.524,87.47,3.33253855]
[1772169778088,3.97026351,87.507,87.46,3.33253855]
[1772169778695,10.2857,87.498,87.46,3.33253855]
[1772169779190,10.2857,87.498,87.377,33.90979981]
[1772169779191,10.2843,87.51,87.47,3.33253855]
[1772169779392,10.2843,87.51,87.48,3.33253855]
[1772169781194,4.02822942,87.501,87.46,3.33253855]
[1772169781395,4.02822942,87.501,87.431,10.2934]
[1772169781699,4.02822942,87.501,87.46,3.33253855]
[1772169782200,10.2855,87.499,87.46,3.33253855]
[1772169782402,4.02822942,87.498,87.46,3.33253855]
[1772169782801,4.02822942,87.498,87.381,28.23416877]
[1772169782990,4.01017428,87.489,87.44,3.33253855]
[1772169783391,4.01017428,87.489,87.44,3.34446937]
[1772169783894,159.9425,87.529,87.388,5.14215525]
[1772169783895,14.29927428,87.469,87.43,3.34446937]
[1772169784090,4.01017428,87.468,87.43,3.34446937]
[1772169784697,10.2883,87.475,87.44,6.937e-05]
[1772169785098,4.02880561,87.474,87.43,6.937e-05]
[1772169785501,4.02880561,87.501,87.388,5.14215525]
[1772169785801,4.02880561,87.499,87.44,3.34446937]
[1772169786198,4.02880561,87.499,87.44,6.937e-05]
[1772169786397,4.02880561,87.467,87.388,5.14215525]
[1772169786598,4.02880561,87.467,87.42,3.34446937]
[1772169786998,3.98163536,87.462,87.42,3.34446937]
[1772169788004,3.98163536,87.458,87.388,5.14215525]
[1772169788202,3.98163536,87.458,87.42,3.34446937]
[1772169788510,10.2904,87.457,87.43,3.34446937]
[1772169788996,3.99659168,87.471,87.41,10.2959]
[1772169789196,10.2881,87.477,87.45,6.937e-05]
[1772169789502,3.34446937,87.51,87.44,3.34446937]
[1772169789503,10.2888,87.471,87.44,3.34446937]
[1772169789896,10.2888,87.471,87.44,6.937e-05]
[1772169790096,3.99659168,87.463,87.43,3.34446937]
[1772169791002,3.99659168,87.463,87.398,10.2973]
[1772169791200,3.73865711,87.46,87.398,10.2973]
[1772169791404,3.73865711,87.459,87.41,3.34446937]
[1772169792102,3.73865711,87.452,87.385,3.10990879]
[1772169792299,3.73865711,87.449,87.385,3.10990879]
[1772169792499,3.73865711,87.449,87.4,3.34446937]
[1772169793105,3.73865711,87.446,87.4,3.34446937]
[1772169793404,3.73865711,87.446,87.39,3.34446937]
[1772169794203,3.73865711,87.426,87.367,3.12477376]
[1772169794501,3.73865711,87.426,87.323,34.24]
[1772169794502,3.73865711,87.426,87.37,3.34446937]
[1772169795306,3.73865711,87.413,87.37,3.34446937]
[1772169795898,3.73865711,87.413,87.38,3.34446937]
[1772169796098,3.73865711,87.441,87.39,3.34446937]
[1772169796300,3.73865711,87.441,87.39,6.45687448]
[1772169796501,3.73865711,87.409,87.34,3.11240511]
[1772169796700,3.73865711,87.399,87.35,3.34446937]
[1772169796905,3.73865711,87.399,87.34,6.45687448]
[1772169797501,3.34446937,87.4,87.34,6.45687448]
[1772169797502,3.73865711,87.392,87.34,6.45687448]
[1772169797902,10.2984,87.39,87.34,6.45687448]
[1772169798103,3.73865711,87.389,87.34,6.45687448]
[1772169798303,3.73865711,87.403,87.36,3.34446937]
[1772169799006,10.2959,87.411,87.37,3.34446937]
[1772169799210,10.2959,87.411,87.38,6.937e-05]
[1772169800107,3.73865711,87.418,87.38,6.937e-05]
[1772169800408,3.73865711,87.418,87.36,3.34446937]
[1772169801211,10.2978,87.395,87.33,19.28222403]
[1772169802008,14.17276299,87.405,87.339,10.3043]
[1772169802209,3.87616299,87.404,87.33,8.97692403]
[1772169802407,3.87616299,87.404,87.32,8.97692403]
[1772169802808,10.2998,87.378,87.321,10.3064]
[1772169804203,3.89763582,87.372,87.31,10.3076]
[1772169804605,3.89763582,87.372,87.28,8.97692403]
[1772169804904,10.302,87.359,87.3,19.28582403]
[1772169805203,3.89763582,87.372,87.3,8.97692403]
[1772169805401,3.93307562,87.388,87.3,8.97692403]
[1772169806210,10.2998,87.378,87.32,10.3066]
[1772169806513,10.2998,87.378,87.32,19.28352403]
[1772169806904,14.23167562,87.388,87.329,10.3055]
[1772169807100,4.00979413,87.387,87.329,10.3055]
[1772169807804,4.00979413,87.383,87.32,8.97692403]
[1772169808407,10.2998,87.377,87.32,8.97692403]
[1772169808606,4.00979413,87.383,87.31,10.3077]
[1772169808809,4.00979413,87.383,87.267,230.51215731]
[1772169809005,4.00826466,87.367,87.3,10.3088]
[1772169809206,4.00826466,87.389,87.31,8.97692403]
[1772169810107,10.3011,87.367,87.306,10.3082]
[1772169810303,4.00826466,87.374,87.3,8.97692403]
[1772169811009,4.00826466,87.374,87.324,10.306]
[1772169811608,4.00782778,87.409,87.32,8.97692403]
[1772169811805,10.2976,87.396,87.334,10.3049]
[1772169812008,10.2976,87.396,87.34,8.97692403]
[1772169812413,10.2982,87.391,87.34,8.97692403]
[1772169813206,10.2982,87.391,87.331,10.3052]
[1772169813407,10.2994,87.381,87.322,10.3063]
[1772169813610,4.04818752,87.381,87.3,8.97692403]
[1772169814204,4.04818752,87.395,87.32,8.97692403]
[1772169815612,4.0535591,87.411,87.34,8.97692403]
[1772169816517,4.0535591,87.411,87.348,10.3032]
[1772169816818,4.05139179,87.459,87.306,34.24]
[1772169817116,4.05139179,87.459,87.35,8.97692403]
[1772169817311,4.05139179,87.41,87.35,8.97692403]
[1772169817506,4.05139179,87.41,87.33,8.97692403]